Cogmind - Beta 13 @@@ ROGUE MODE // 2024.04.28 @ 22:00:01 Player: Zedx Result: Destroyed by P4-S75(R) with Subdweller Machine Gun Performance ------------- Evolutions (0) 0 Regions Visited (3) 600 Robots Destroyed (17) 85 Value Destroyed (313) 313 Prototype IDs (0) 0 Alien Tech Used (0) 0 Bonus (0) 0 TOTAL SCORE: 998 Bonus ------- None Cogmind --------- Core Integrity 0/250 Matter 259/300 Energy 99/100 System Corruption 0% Temperature Cool (0) Movement Rolling (120) Ox1 Location -10/Subcaves Parts ------- > --- POWER (1) -------- (None) > --- PROPULSION (2) --- Subdweller Monowheel > --- UTILITY (2) ------ Large Storage Unit > --- WEAPON (2) ------- Light Assault Rifle > --- INVENTORY (15) --- Light Ion Engine Subdweller Power Source Light Angular Momentum Engine Wheel Wheel Compact Wheel Large Storage Unit Scrap Shield Particle Gun Particle Gun Beam Cannon Light Assault Rifle Light Assault Rifle Peak State ------------ > --- POWER ------------ Neutrino Core > --- PROPULSION ------- Subdweller Monowheel Subdweller Monowheel > --- UTILITY ---------- Large Storage Unit > --- WEAPON ----------- Light Assault Rifle Battle Cannon > --- INVENTORY -------- Light Ion Engine Subdweller Power Source Light Angular Momentum Engine Wheel Wheel Compact Wheel Large Storage Unit Scrap Shield Particle Gun Particle Gun Beam Cannon Assault Rifle Light Assault Rifle Light Assault Rifle [Rating: 16] Favorites ----------- Power Ion Engine Engine Ion Engine Power Core Neutrino Core Propulsion Compact Wheel Wheel Compact Wheel Flight Unit Flight Unit Utility Large Storage Unit Device Seismic Detector Storage Large Storage Unit Processor Transport Network Coupler Weapon Assault Rifle Energy Gun Medium Laser Ballistic Gun Assault Rifle Ballistic Cannon Battle Cannon Special Weapon Mining Laser Build | -11 -10 -10 -10 ------- Run | Yrd Mat Min Sub Slots Evolved . | . . . . Power . | . . . . Propulsion . | . . . . Utility . | . . . . Weapon . | . . . . Parts Attached 26 | 10 3 8 5 Power 4 | 1 . 2 1 Engine 3 | 1 . 2 . Core 1 | . . . 1 Reactor . | . . . . Propulsion 9 | 2 1 3 3 Treads . | . . . . Leg . | . . . . Wheel 8 | 2 1 2 3 Hover . | . . . . Flight 1 | . . 1 . Utility 4 | 2 1 1 . Device 1 | 1 . . . Storage 2 | 1 1 . . Processor 1 | . . 1 . Hackware . | . . . . Protection . | . . . . Artifact . | . . . . Weapon 9 | 5 1 2 1 Energy Gun 1 | 1 . . . Energy Cannon . | . . . . Ballistic Gun 6 | 3 1 1 1 Ballistic Cannon 1 | . . 1 . Launcher . | . . . . Special Weapon 1 | 1 . . . Impact Weapon . | . . . . Slashing Weapon . | . . . . Piercing Weapon . | . . . . Special Melee Weapon . | . . . . Unidentified Prototypes . | . . . . Parts Lost 7 | . 1 2 4 Power 1 | . . . 1 Propulsion 3 | . 1 1 1 Utility 1 | . . 1 . Weapon 2 | . . . 2 Highest Loss Streak 4 | . 1 1 4 To Critical Strikes . | . . . . Average Slot Usage (%) 95 | . 98 98 85 Engine 12 | . 14 14 8 Core 1 | . . . 5 Wheel 25 | . 26 24 28 Flight 1 | . . 2 . Device 4 | . 14 . . Storage 14 | . 14 14 14 Processor 6 | . . 12 . Ballistic Gun 22 | . 28 22 14 Ballistic Cannon 5 | . . 6 13 Naked Turns . | . . . . Heaviest Build 38 | 14 29 33 38 Greatest Support 40 | 32 32 26 40 Greatest Overweight (x) 2 | . 1 2 1 Average Overweight (x) . | . . . . Largest Inventory Capacity 15 | 8 15 15 15 Average Capacity 12 | 7 14 15 15 Most Carried 15 | 7 11 15 15 Average Carried 9 | 5 8 13 14 Final Capacity 15 | 8 15 15 15 Final Carried 15 | 5 11 15 14 Class Distribution -------------------- 79% | Mutant 20% | Scavenger-Mutant Dominant Class ---------------- Mutant | -10/Materials Mutant | -10/Mines Scavenger-Mutant | -10/Subcaves Resources | -11 -10 -10 -10 ----------- Run | Yrd Mat Min Sub Matter Collected 657 | 273 124 170 90 Remotely . | . . . . Salvage Created 333 | 25 125 153 30 Parts 34 | 7 7 17 3 Haulers Intercepted . | . . . . Recyclers Shooed . | . . . . Parts Field Recycled . | . . . . Retrieved Matter . | . . . . Parts Self-Destructed 2 | . . . 2 Prevented . | . . . . Kills | -11 -10 -10 -10 ------- Run | Yrd Mat Min Sub Combat Hostiles Destroyed 14 | . 5 8 1 Guns 12 | . 5 6 1 Cannons 2 | . . 2 . Classes Destroyed 4 | 1 2 . 1 Tunneler 3 | 2 . 1 . Swarmer 9 | . 3 6 . Grunt 4 | . 2 2 . Subdweller 1 | . . . 1 Best Kill Streak 3 | 1 3 3 1 Combat Bots Only 3 | . 3 3 1 Max Kills in Single Turn 2 | 1 1 2 1 Gunslinging 1 | . . 1 . Exploded . | . . . . Melee . | . . . . Uniques/NPCs Destroyed . | . . . . Combat | -11 -10 -10 -10 -------- Run | Yrd Mat Min Sub Hostile Shots Fired 116 | . 25 54 37 Missed 35 | . 8 14 13 Damage Taken 1121 | . 216 408 497 Core 257 | . 53 137 67 Absorbed by Shields . | . . . . Core Remaining (%) 100 | 100 . . . Volleys Fired 142 | 87 16 29 10 Largest 2 | 2 2 2 2 Hottest 100 | 100 40 59 59 Shots Fired 198 | 89 32 58 19 Gun 92 | 4 32 44 12 Cannon 21 | . . 14 7 Launcher . | . . . . Special 85 | 85 . . . Kinetic 113 | 4 32 58 19 Thermal 85 | 85 . . . Explosive . | . . . . Electromagnetic . | . . . . Robot Hit Streak 9 | 1 9 5 7 Robot Miss Streak 3 | . 2 3 1 Penetration Max . | . . . . Secondary Targets 5 | . 2 3 . Max Gunslinging Chain 1 | . 1 1 . Shots Hit Robots 64 | 1 18 33 12 Core Hits 28 | 2 8 14 4 Critical Kills . | . . . . Critical Parts Destroyed . | . . . . Critical Strikes 1 | . . . 1 Blast 1 | . . . 1 Melee Attacks . | . . . . Impact . | . . . . Slashing . | . . . . Piercing . | . . . . Sneak Attacks . | . . . . Combat Hostiles . | . . . . Follow-up Attacks . | . . . . Damage Inflicted 804 | 36 177 415 176 Guns 508 | 12 177 235 84 Cannons 272 | . . 180 92 Explosions . | . . . . Melee . | . . . . Ramming . | . . . . Kinetic 780 | 12 177 415 176 Thermal 24 | 24 . . . Explosive . | . . . . Electromagnetic . | . . . . Impact . | . . . . Slashing . | . . . . Piercing . | . . . . Highest Corruption . | . . . . Average Corruption . | . . . . Corruption Purged . | . . . . Corruption Blocked . | . . . . Overload Shots . | . . . . Overflow Damage . | . . . . Projectiles . | . . . . Explosions . | . . . . Melee . | . . . . Knockbacks 3 | . . . 3 Impact . | . . . . Kinetic 3 | . . . 3 Secondary . | . . . . Self-Inflicted Damage . | . . . . Shots . | . . . . Rammed . | . . . . Targets Rammed . | . . . . Kicked . | . . . . Crushed . | . . . . Highest Temperature 300 | 300 24 113 . Average Temperature 92 | 100 9 53 . Received Heat Transfer 267 | . 102 117 48 Effects 2 | 2 . . . Energy Bleed 2 | 2 . . . Siege Activations . | . . . . Robots Corrupted . | . . . . Combat Hostiles . | . . . . Parts Fried . | . . . . Impact Corruptions . | . . . . Robots Melted . | . . . . Combat Hostiles . | . . . . Parts Melted . | . . . . Heat Transferred 50 | 50 . . . Parts Sabotaged . | . . . . Parts Stolen . | . . . . Parts Stripped . | . . . . Power Chain Reactions . | . . . . Alert | -11 -10 -10 -10 ------- Run | Yrd Mat Min Sub Peak Influence 214 | 10 140 214 . Initial 54 | . . 54 . Average 56 | 5 42 128 . Maximum Alert Level 1 | . . 1 . Low Security (%) 99 | 100 100 99 . Level 1 . | . . . . Level 2 . | . . . . Level 3 . | . . . . Level 4 . | . . . . Level 5 . | . . . . High Security . | . . . . Max Security . | . . . . Squads Dispatched 2 | . 2 . . Investigation 1 | . 1 . . Extermination . | . . . . Reinforcement 1 | . 1 . . Assault . | . . . . Garrison . | . . . . Intercept . | . . . . Searches Triggered . | . . . . Construction Impeded . | . . . . Haulers Reinforced . | . . . . Active Scanning Responses . | . . . . Cargo Convoy Interrupts . | . . . . Stealth | -11 -10 -10 -10 --------- Run | Yrd Mat Min Sub Distress Signals . | . . . . Communications Jammed . | . . . . Distress Signals . | . . . . Times Spotted 27 | . 9 8 10 Peak Tracking Total 7 | . 4 3 7 Tactical Retreats 1 | . . . 1 Traps | -11 -10 -10 -10 ------- Run | Yrd Mat Min Sub Traps Triggered 1 | . 1 . . Indirectly . | . . . . Trap Hack Attempts . | . . . . Triggered . | . . . . Disarmed . | . . . . Reprogrammed . | . . . . Reused . | . . . . Traps Extracted . | . . . . Installed . | . . . . Triggered . | . . . . Machines | -11 -10 -10 -10 ---------- Run | Yrd Mat Min Sub Machines Disabled . | . . . . Max in Single Turn . | . . . . Machines Repaired . | . . . . Machines Dismantled . | . . . . Machines Sabotaged . | . . . . Overloaded Fab Kills . | . . . . Hacking | -11 -10 -10 -10 --------- Run | Yrd Mat Min Sub Machines Accessed 2 | . 2 . . Terminals 2 | . 2 . . Fabricators . | . . . . Repair Stations . | . . . . Recycling Units . | . . . . Scanalyzers . | . . . . Garrison Access . | . . . . Total Hacks 7 | . 7 . . Successful . | . . . . Failed 7 | . 7 . . Catastrophic 2 | . 2 . . Database Lockouts . | . . . . Manual 7 | . 7 . . Terminals 7 | . 7 . . Fabricators . | . . . . Repair Stations . | . . . . Recycling Units . | . . . . Scanalyzers . | . . . . Garrison Access . | . . . . Terminal Hacks . | . . . . Fabricator Hacks . | . . . . Repair Station Hacks . | . . . . Recycling Unit Hacks . | . . . . Scanalyzer . | . . . . Garrison Access Hacks . | . . . . Unauthorized Hacks . | . . . . Terminals . | . . . . Fabricators . | . . . . Repair Stations . | . . . . Recycling Units . | . . . . Scanalyzers . | . . . . Garrison Access . | . . . . Data Cores Recovered . | . . . . Used . | . . . . Hacking Detections 2 | . 2 . . Full Trace Events . | . . . . Feedback Events . | . . . . Feedback Blocked . | . . . . Robot Schematics Acquired . | . . . . Robots Built . | . . . . Authchips . | . . . . Time . | . . . . Total Robot Build Rating . | . . . . Part Schematics Acquired . | . . . . Parts Built . | . . . . Authchips . | . . . . Time . | . . . . Total Part Build Rating . | . . . . Parts Repaired . | . . . . Time . | . . . . Parts Recycled . | . . . . Recycled Matter . | . . . . Retrieved Matter . | . . . . Retrieved Components . | . . . . Parts Scanalyzed . | . . . . Part Schematics Acquired . | . . . . Parts Damaged . | . . . . Bothacking | -11 -10 -10 -10 ------------ Run | Yrd Mat Min Sub Used RIF Installer . | . . . . Robots Hacked . | . . . . Non-combat . | . . . . Combat . | . . . . Robot Hacks Applied . | . . . . Relay Couplers Released . | . . . . Fabnet Peak Effective % . | . . . . Robots Rewired . | . . . . Allies Hacked . | . . . . Hacks Repelled . | . . . . Allies | -11 -10 -10 -10 -------- Run | Yrd Mat Min Sub Total Allies . | . . . . Largest Group . | . . . . Highest-Rated Group . | . . . . Highest-Rated Ally . | . . . . Total Orders . | . . . . Ally Attacks . | . . . . Total Damage . | . . . . Kills . | . . . . Allies Corrupted . | . . . . Allies Melted . | . . . . Intel | -11 -10 -10 -10 ------- Run | Yrd Mat Min Sub Robot Analysis Total . | . . . . Derelict Logs Recovered 2 | . . 2 . Drone Launches . | . . . . Drone Recoveries . | . . . . Exploration | -11 -10 -10 -10 ------------- Run | Yrd Mat Min Sub Turns Passed 1647 | 607 342 495 203 Spaces Moved 1017 | 222 270 376 149 Core 18 | 18 . . . Treads . | . . . . Legs . | . . . . Wheels 999 | 204 270 376 149 Hover . | . . . . Flight . | . . . . Fastest Speed 50 | 50 100 90 95 Average Speed 98 | 95 101 97 102 Slowest Speed 130 | 100 115 130 110 Overloaded Moves . | . . . . Propulsion Burnouts . | . . . . Robots Hopped . | . . . . Cave-ins Triggered . | . . . . Exploration Rate (%) 34 | 9 42 75 11 Regions Visited 3 Branch Regions 2 Pre-discovered Areas 1 | . . 1 . Known Exits Taken . | . . . . Unknown Exits Taken 3 | 1 1 1 . Scrap Searched . | . . . . Spaces Dug 18 | 18 . . . Terrain Destroyed 31 | 28 . 3 . Melee . | . . . . Projectile 31 | 28 . 3 . AOE . | . . . . Terrain Rammed . | . . . . Walls Destroyed . | . . . . Machines Disabled . | . . . . Actions | -11 -10 -10 -10 --------- Run | Yrd Mat Min Sub Total 1310 | 357 310 452 191 Wait 63 | 24 12 20 7 Move 1014 | 221 269 375 149 Hop . | . . . . Pick Up 43 | 13 8 13 9 Fast Attach . | . . . . Attach 15 | 8 2 4 1 Detach 3 | 1 1 . 1 Swap 11 | 2 1 4 4 Drop 19 | 1 1 7 10 Fire 142 | 87 16 29 10 Melee . | . . . . Ram . | . . . . Kick . | . . . . Crush . | . . . . Escape Stasis . | . . . . Rewire . | . . . . Trap . | . . . . Miscellaneous . | . . . . Route ------- -11/Scrapyard -10/Materials -10/Mines -10/Subcaves History --------- Turn | Location | Event 25 | -11/Scrapyard | Discovered new exit (range 15) 608 | -11/Scrapyard | Entered Materials 619 | -10/Materials | Build established: Mutant 937 | -10/Materials | Discovered new exit (range 10) 950 | -10/Materials | Entered Mines 951 | -10/Mines | Met a Derelict bent on vengeance 1166 | -10/Mines | Learned 4 Materials zone layouts 1192 | -10/Mines | Core integrity fell below 50% 1229 | -10/Mines | A weapon hastily lodged in a ceiling crevice suddenly fell to the ground 1433 | -10/Mines | Discovered new exit (range 8) 1445 | -10/Mines | Entered Subcaves 1550 | -10/Subcaves | Ambushed by swarm of Subdwellers 1601 | -10/Subcaves | Build established: Scavenger-Mutant 1605 | -10/Subcaves | Lost 4 allies 1647 | -10/Subcaves | Core integrity fell below 20% 1648 | -10/Subcaves | Destroyed by P4-S75(R) with Subdweller Machine Gun Last Messages --------------- 01560_ Dropped Lgt. Ion Engine. 01560_ Acquired Neutrino Core. 01561_ O4-IZR(g) destroyed. 01565_ Acquired 39 matter. 01566_ 7V-4ZI(R) destroyed. 01567_ SH-K4Z(R) destroyed. 01569_ Subatomizers dissect the Sub. Optics. 01572_ 7V-EGT(g) destroyed. 01574_ FU-YIU(R) destroyed. 01574_ 9P-OBG(g) destroyed. 01624_ BS-65X(R) knocked back. 01630_ BS-65X(R) destroyed. 01635_ 73-SSI(R) knocked back. 01638_ 73-SSI(R) Disposable Heat Sink blasted off. 01638_ 73-SSI(R) knocked back. 01638_ Battle Cannon destroyed. 01640_ Sub. Monowheel destroyed. 01644_ Neutrino Core destroyed. 01646_ Assault Rifle destroyed. Map ----- +----------------------------------------------------+ | | | | | | | | | ???????????????????????????????????????????????? | | ???????????????????????????????????????????????? | | ???????????????????????????????????????????????? | | ???????????????????????????????????????????????? | | ???????????????????????????????????????????????? | | ???????????????????????????????????????????????? | | ???????????????????????????????????????????????? | | ???????????????????????????????????????????????? | | ???????????????????????????????????????????????? | | ???????????????????????????????????????????????? | | ???????????????????????????????????????????????? | | ???????????????????????????????????????????????? | | ???????????????????????????????????????????????? | | ???????????????????????????????????????????????? | | ???????????????????????????????????????????????? | | ?????????????????????########??????????????????? | | ????????????????????## ##?????????????????? | | ????????????????????# #?????????????????? | | ????????????????????# #####?????????????? | | ???????????????????## ##????????????? | | ??????????????## ### #????????????? | | ??????????????# @ ### #???????????? | | ??????????????# *=###???? ####???????????? | | ??????????????# RRR######?????????????????? | | ??????????????## % %! #####?????????????? | | ???????????????# ## #####?????????? | | ???????????????## " #?????????? | | ????????????????## #### & #??????#### | | ?????????????????# #??## #?##### | | ?????????????????# ???# "### | | ?????????????????## ???## ## """# # | | ??????????????????## ????# ##" " #? | | ???????????????????# ????# #?## #? | | ???????????????????# ?????# ##??##### ##? | | ???????????????????# ????? ##???????# ##?? | | ??????????????????? ????# ?????????## ##### | | ???????????????????#?????# ??????????## ### | | ????????????????????????? ???????????## | | ????????????????????????# ????????????# # | | ????????????????????????####?# ?????#### ## | | ?????????????????????????????# ### ##? | | ???????????????????????????????# #?? | | ???????????????????????????????# ##? | | ???????????????????????????????# ### #? | | ???????????????????????????????# ???# # ##? | | ???????????????????????????????## ????## #?# | +----------------------------------------------------+ Best States ------------- Heat Dissipation 25 Energy Generation 19 Energy Capacity 315 Matter Stores 300 Matter Capacity 300 Sight Range 16 Terrain Scan Density 10 Evasion (%) 42 Item Schematics ----------------- None Robot Schematics ------------------ None Fabricated ------------ Nothing Alien Tech Used ----------------- None Achievements -------------- None Challenges ------------ None Game ------ Seed ThunderGlidesysSuite Manual? 0 Play Time 00:19:01 Cumulative 25.6 hours Start 2024.04.28 @ 21:40:26 End 2024.04.28 @ 22:00:01 Sessions 1 Manual Loads 0 Difficulty Rogue Special Mode None Game No. 30 Rogue 30 Adventurer 0 Explorer 0 Win Type - Total 0 Types 0/0/0/0/0/0/0/0/0 Lore% 23 Gallery% 29 Achievement% 21 Wizard Run 0 Options --------- Layout 1 ASCII 0 Keyboard 1 Movement Numpad Keybinds 0 Fullscreen 1 Font 24/Smallcaps Map View 50x35 Zoom Use 0% Tactical HUD 1 Map Filters NONE Filters NONE Steam 1 RUN: cdaadc1d-c695-44c3-b3a5-5aba26f5f9b1